Cogmind - Beta 9.4 @@@ ROGUE MODE // 2020.02.27 @ 18:48:38 Player: Stryker Result: Self-destructed Performance ------------- Evolutions (1) 500 Regions Visited (2) 400 Robots Destroyed (20) 100 Value Destroyed (453) 453 Prototype IDs (2) 40 Alien Tech Used (0) 0 Bonus (0) 0 TOTAL SCORE: 1493 Bonus ------- None Cogmind --------- Core Integrity 371/400 Matter 267/300 Energy 125/125 System Corruption 0% Temperature Cool (0) Movement Core (750) Ox14 Location -9/Materials Parts ------- > --- POWER (1) -------- Light Ion Engine > --- PROPULSION (3) --- Light Treads Light Treads > --- UTILITY (3) ------ Cooling System Large Storage Unit Large Storage Unit > --- WEAPON (2) ------- Beam Rifle Particle Gun > --- INVENTORY (16) --- Improved Ion Engine Light Treads Compact Wheel Armored Wheel Armored Wheel Armored Wheel Large Storage Unit Large Matter Pod (59) Signal Interpreter Light Armor Plating Beam Rifle Heavy Assault Rifle Grenade Launcher Heavy Hammer Heavy Hammer Heavy Hammer Peak State ------------ > --- POWER ------------ Light Ion Engine > --- PROPULSION ------- Light Treads Light Treads Armored Wheel > --- UTILITY ---------- Cooling System Large Storage Unit Large Storage Unit > --- WEAPON ----------- Beam Rifle Particle Gun > --- INVENTORY -------- Improved Ion Engine Light Treads Compact Wheel Armored Wheel Armored Wheel Armored Wheel Large Storage Unit Large Matter Pod Signal Interpreter Light Armor Plating Beam Rifle Heavy Assault Rifle Grenade Launcher Heavy Hammer Heavy Hammer Heavy Hammer [Rating: 15] Favorites ----------- Power Ion Engine Engine Ion Engine Propulsion Light Treads Treads Light Treads Leg Aluminum Leg Wheel Compact Wheel Utility Large Storage Unit Device Cooling System Storage Large Storage Unit Processor Visual Processing Unit Weapon Particle Gun Energy Gun Particle Gun Ballistic Gun Assault Rifle Impact Weapon Hammer Build | -11 -10 -9 ------- Run | Scr Mat Mat Slots Evolved 2 | . . 2 Power . | . . . Propulsion 1 | . . 1 Utility 1 | . . 1 Weapon . | . . . Parts Attached 24 | 3 14 7 Power 3 | . 2 1 Engine 3 | . 2 1 Core . | . . . Reactor . | . . . Propulsion 6 | 2 2 2 Treads 3 | 1 1 1 Leg . | . . . Wheel 3 | 1 1 1 Hover . | . . . Flight . | . . . Utility 6 | 1 3 2 Device 2 | . . 2 Storage 2 | . 2 . Processor 2 | 1 1 . Hackware . | . . . Protection . | . . . Artifact . | . . . Weapon 9 | . 7 2 Energy Gun 5 | . 3 2 Energy Cannon . | . . . Ballistic Gun 3 | . 3 . Ballistic Cannon . | . . . Launcher . | . . . Special Weapon . | . . . Impact Weapon 1 | . 1 . Slashing Weapon . | . . . Piercing Weapon . | . . . Special Melee Weapon . | . . . Unidentified Prototypes . | . . . Parts Lost 7 | . 5 2 Power 2 | . 1 1 Propulsion 1 | . 1 . Utility . | . . . Weapon 4 | . 3 1 Highest Loss Streak 4 | . 4 1 Average Slot Usage (%) 97 | . 98 94 Engine 13 | . 14 11 Treads 15 | . 14 22 Wheel 13 | . 14 11 Device 1 | . . 6 Storage 26 | . 27 22 Energy Gun 12 | . 13 11 Ballistic Gun 12 | . 12 10 Naked Turns . | . . . Heaviest Build 44 | 11 42 44 Greatest Support 40 | 20 16 40 Greatest Overweight (x) 3 | . 3 3 Average Overweight (x) 1 | . 1 1 Largest Inventory Capacity 16 | 6 16 16 Average Capacity 14 | 6 15 16 Most Carried 16 | 6 16 16 Average Carried 12 | 5 12 15 Final Capacity 16 | 6 16 16 Final Carried 16 | 6 16 16 Class Distribution -------------------- 100% | Mutant Dominant Class ---------------- Mutant | -10/Materials Mutant | -9/Materials Resources | -11 -10 -9 ----------- Run | Scr Mat Mat Matter Collected 650 | 230 286 134 Remotely . | . . . Salvage Created 706 | 104 415 187 Parts 43 | 6 24 13 Haulers Intercepted 3 | . 2 1 Recyclers Shooed 1 | . 1 . Parts Field Recycled . | . . . Retrieved Matter . | . . . Parts Self-Destructed . | . . . Prevented . | . . . Kills | -11 -10 -9 ------- Run | Scr Mat Mat Combat Hostiles Destroyed 13 | . 10 3 Guns 13 | . 10 3 Classes Destroyed 6 | 2 3 1 Tunneler 3 | 2 1 . Hauler 3 | . 2 1 Recycler 1 | 1 . . Swarmer 3 | . 3 . Grunt 9 | . 7 2 Sentry 1 | . . 1 Best Kill Streak 3 | 2 3 1 Combat Bots Only 2 | . 2 1 Max Kills in Single Turn 1 | 1 1 1 Gunslinging . | . . . Exploded . | . . . Melee . | . . . Uniques/NPCs Destroyed . | . . . Combat | -11 -10 -9 -------- Run | Scr Mat Mat Damage Taken 1027 | . 805 222 Core 243 | . 214 29 Absorbed by Shields . | . . . Core Remaining (%) 57 | 100 14 . Volleys Fired 84 | 11 58 15 Largest 2 | 2 2 2 Hottest 100 | 100 85 85 Shots Fired 156 | 17 109 30 Gun 156 | 17 109 30 Cannon . | . . . Launcher . | . . . Special . | . . . Kinetic 73 | . 58 15 Thermal 83 | 17 51 15 Explosive . | . . . Electromagnetic . | . . . Robot Hit Streak 11 | 5 11 10 Robot Miss Streak 4 | 2 4 2 Penetration Max . | . . . Secondary Targets 2 | . 2 . Max Gunslinging Chain 1 | . 1 . Shots Hit Robots 102 | 12 67 23 Core Hits 36 | 4 24 8 Critical Hits . | . . . Critical Kills . | . . . Critical Parts Destroyed . | . . . Melee Attacks 14 | . 14 . Impact 14 | . 14 . Slashing . | . . . Piercing . | . . . Sneak Attacks . | . . . Combat Hostiles . | . . . Follow-up Attacks . | . . . Damage Inflicted 1402 | 135 936 331 Guns 1402 | 135 936 331 Cannons . | . . . Explosions . | . . . Melee . | . . . Ramming . | . . . Kinetic 540 | . 420 120 Thermal 862 | 135 516 211 Explosive . | . . . Electromagnetic . | . . . Impact . | . . . Slashing . | . . . Piercing . | . . . Highest Corruption . | . . . Average Corruption . | . . . Corruption Purged . | . . . Overload Shots . | . . . Overflow Damage . | . . . Projectiles . | . . . Explosions . | . . . Melee . | . . . Knockbacks . | . . . Impact . | . . . Kinetic . | . . . Secondary . | . . . Self-Inflicted Damage . | . . . Shots . | . . . Rammed . | . . . Targets Rammed . | . . . Kicked . | . . . Crushed . | . . . Highest Temperature 312 | 244 312 . Average Temperature 108 | 106 109 . Received Heat Transfer 495 | . 384 111 Effects 2 | 1 1 . Energy Bleed 1 | . 1 . Interference 1 | 1 . . Siege Activations . | . . . Robots Corrupted . | . . . Combat Hostiles . | . . . Parts Fried . | . . . Impact Corruptions . | . . . Robots Melted . | . . . Combat Hostiles . | . . . Parts Melted . | . . . Heat Transferred 2109 | 407 1221 481 Parts Sabotaged . | . . . Parts Stolen . | . . . Parts Stripped . | . . . Power Chain Reactions . | . . . Missiles Intercepted . | . . . Alert | -11 -10 -9 ------- Run | Scr Mat Mat Peak Influence 151 | 15 151 87 Average Influence 47 | 8 52 43 Maximum Alert Level . | . . . Low Security (%) 100 | 100 100 100 Level 1 . | . . . Level 2 . | . . . Level 3 . | . . . Level 4 . | . . . Level 5 . | . . . High Security . | . . . Max Security . | . . . Squads Dispatched 4 | . 3 1 Investigation 1 | . 1 . Extermination . | . . . Reinforcement 3 | . 2 1 Assault . | . . . Garrison . | . . . Intercept . | . . . Construction Impeded . | . . . Haulers Reinforced . | . . . Stealth | -11 -10 -9 --------- Run | Scr Mat Mat Distress Signals 2 | . 1 1 Communications Jammed . | . . . Distress Signals . | . . . Times Spotted 25 | . 22 3 Peak Tracking Total 5 | . 5 3 Tactical Retreats 3 | . 3 . Traps | -11 -10 -9 ------- Run | Scr Mat Mat Traps Triggered 3 | . 1 2 Indirectly . | . . . Trap Hack Attempts . | . . . Triggered . | . . . Disarmed . | . . . Reprogrammed . | . . . Reused . | . . . Traps Extracted . | . . . Installed . | . . . Triggered . | . . . Machines | -11 -10 -9 ---------- Run | Scr Mat Mat Machines Disabled . | . . . Max in Single Turn . | . . . Machines Sabotaged . | . . . Garrisons Compromised . | . . . Overloaded Fab Kills . | . . . Fab Network Shutdowns . | . . . Hacking | -11 -10 -9 --------- Run | Scr Mat Mat Machines Accessed 3 | . 3 . Terminals 3 | . 3 . Fabricators . | . . . Repair Stations . | . . . Recycling Units . | . . . Scanalyzers . | . . . Garrison Access . | . . . Total Hacks 8 | . 8 . Successful 5 | . 5 . Failed 3 | . 3 . Catastrophic . | . . . Database Lockouts . | . . . Manual 7 | . 7 . Terminals 8 | . 8 . Fabricators . | . . . Repair Stations . | . . . Recycling Units . | . . . Scanalyzers . | . . . Garrison Access . | . . . Terminal Hacks 2 | . 2 . Part Schematic 1 | . 1 . Prototype ID Bank 1 | . 1 . Fabricator Hacks . | . . . Repair Station Hacks . | . . . Recycling Unit Hacks . | . . . Scanalyzer . | . . . Garrison Access Hacks . | . . . Unauthorized Hacks 7 | . 7 . Terminals 3 | . 3 . Track 1 | . 1 . Botnet 2 | . 2 . Fabricators . | . . . Repair Stations . | . . . Recycling Units . | . . . Scanalyzers . | . . . Garrison Access . | . . . Data Cores Recovered . | . . . Used . | . . . Hacking Detections 3 | . 3 . Full Trace Events . | . . . Feedback Events . | . . . Feedback Blocked . | . . . Robot Schematics Acquired . | . . . Robots Built . | . . . Matter . | . . . Time . | . . . Total Robot Build Rating . | . . . Part Schematics Acquired 1 | . 1 . Parts Built . | . . . Matter . | . . . Time . | . . . Total Part Build Rating . | . . . Parts Repaired . | . . . Time . | . . . Parts Recycled . | . . . Recycled Matter . | . . . Retrieved Matter . | . . . Retrieved Components . | . . . Parts Scanalyzed . | . . . Part Schematics Acquired . | . . . Parts Damaged . | . . . Bothacking | -11 -10 -9 ------------ Run | Scr Mat Mat Used RIF Installer . | . . . Robots Hacked . | . . . Non-combat . | . . . Combat . | . . . Robot Hacks Applied . | . . . Relay Couplers Released . | . . . Robots Rewired . | . . . Allies Hacked . | . . . Hacks Repelled . | . . . Allies | -11 -10 -9 -------- Run | Scr Mat Mat Total Allies . | . . . Largest Group . | . . . Highest-Rated Group . | . . . Highest-Rated Ally . | . . . Total Orders . | . . . Ally Attacks . | . . . Total Damage . | . . . Kills . | . . . Allies Corrupted . | . . . Allies Melted . | . . . Intel | -11 -10 -9 ------- Run | Scr Mat Mat Robot Analysis Total . | . . . Derelict Logs Recovered . | . . . Drone Launches . | . . . Drone Recoveries . | . . . Exploration | -11 -10 -9 ------------- Run | Scr Mat Mat Turns Passed 1162 | 64 833 265 Spaces Moved 585 | 28 458 99 Core . | . . . Treads 96 | . . 96 Legs 10 | 10 . . Wheels 479 | 18 458 3 Hover . | . . . Flight . | . . . Fastest Speed 100 | 100 100 120 Average Speed 129 | 107 117 191 Slowest Speed 200 | 120 120 200 Overloaded Moves . | . . . Propulsion Burnouts . | . . . Robots Hopped . | . . . Cave-ins Triggered . | . . . Exploration Rate (%) 22 | 2 53 12 Regions Visited 2 Branch Regions . Pre-discovered Areas . | . . . Known Exits Taken . | . . . Unknown Exits Taken 2 | 1 1 . Scrap Searched . | . . . Spaces Dug 1 | . 1 . Terrain Destroyed 1 | . 1 . Melee 1 | . 1 . Projectile . | . . . AOE . | . . . Actions | -11 -10 -9 --------- Run | Scr Mat Mat Total 811 | 45 623 143 Wait 64 | . 50 14 Move 583 | 27 457 99 Hop . | . . . Pick Up 26 | 1 19 6 Fast Attach 10 | 2 5 3 Attach 11 | 1 6 4 Detach 4 | 1 3 . Swap 3 | . 3 . Drop 12 | 2 8 2 Fire 84 | 11 58 15 Melee 14 | . 14 . Ram . | . . . Kick . | . . . Crush . | . . . Escape Stasis . | . . . Rewire . | . . . Trap . | . . . Miscellaneous . | . . . Route ------- -11/Scrapyard -10/Materials (discovered 2 exits: [*Mat] / [*Min]) -9/Materials History --------- Turn | Location | Event 1 | -11/Scrapyard | Discovered new exit (range 2) 65 | -11/Scrapyard | Entered Materials 301 | -10/Materials | Build established: Mutant 611 | -10/Materials | Discovered new exit (range 9) 670 | -10/Materials | Discovered new exit (range 3) 755 | -10/Materials | Core integrity fell below 50% 778 | -10/Materials | Core integrity fell below 20% 804 | -10/Materials | Lost 4 parts (1p3w) 898 | -10/Materials | Entered another Materials area 898 | -9/Materials | Evolved 2 slots: Propulsion x1, Utility x1 1163 | -9/Materials | Self-destructed Last Messages --------------- 01092_ Y-45 Defender destroyed. 01097_ Acquired Hvy. Assault Rifle. 01100_ Acquired Imp. Ion Engine. 01101_ Acquired 48 matter. 01105_ Dropped Hammer. 01105_ Acquired Beam Rifle. 01108_ Dropped Hammer. 01109_ Acquired Lgt. Armor Plating. 01148_ A-02 Transporter destroyed. 01151_ Triggered Blade Trap. 01151_ Massive razor-sharp blades shoot up from within the floor. 01151_ Arm. Wheel severed. 01151_ Assault Rifle severed. 01151_ Cooling System severed. 01155_ Acquired Arm. Wheel. 01157_ Acquired Beam Rifle. 01160_ Acquired Cooling System. 01162_ Triggered Blade Trap. 01162_ Massive razor-sharp blades shoot up from within the floor. 01162_ Arm. Wheel severed. Map ----- +----------------------------------------------------+ | | | | | | | | | ?????????????????????????????????????????????????? | | ?????????????????????????????????????????????????? | | ##########???????????????????????????????????????? | | #?????????????##????????????????????????? | | """ ##########???? ????????????????????????? | | // "R" + ! #???? "????????????????????????? | | / " " ########/#???# ""???#???????????????????? | | #??????# #???# """ #???????????????????? | | = #??????# #???# #???????????????????? | | #??????#/#???# """ #???????????????????? | | ######## ##### """ #???????????????????? | | #####+#### # """ #???????????????????? | | ### ## # #???????????????????? | | ## """ """ # """ #???????????????????? | | ## """ """ + """ #???????????????????? | | """ """ # """ #???????????????????? | | ### ## # #???????????????????? | | ??######## r############+###???????????? | | ?????????# """ ![! ###?????????? | | ?????????# "T" """ *%[ ???????? | | ?????????# """ """ T ?????????? | | ?????????# @= ! ???????? | | ?????????# ##??????????? | | ?????????# #######################???????????? | | ?????????# ??????????????????????????????????? | | ????????# ?????????????????????????????????????? | | ?????????????????????????????????????????????????? | | ?????????????????????????????????????????????????? | | ?????????????????????????????????????????????????? | | ?????????????????????????????????????????????????? | | ?????????????????????????????????????????????????? | | ?????????????????????????????????????????????????? | | ?????????????????????????????????????????????????? | | ?????????????????????????????????????????????????? | | ?????????????????????????????????????????????????? | | ?????????????????????????????????????????????????? | | ?????????????????????????????????????????????????? | | ?????????????????????????????????????????????????? | | ?????????????????????????????????????????????????? | | ?????????????????????????????????????????????????? | | ?????????????????????????????????????????????????? | | ?????????????????????????????????????????????????? | | ?????????????????????????????????????????????????? | | ?????????????????????????????????????????????????? | | ?????????????????????????????????????????????????? | | ?????????????????????????????????????????????????? | +----------------------------------------------------+ Best States ------------- Heat Dissipation 50 Energy Generation 10 Energy Capacity 250 Matter Stores 300 Matter Capacity 300 Sight Range 18 Terrain Scan Density 60 Evasion (%) 40 Recoil Reduction 2 Item Schematics ----------------- Lrg. Storage Unit | -10/Materials | Hacked Robot Schematics ------------------ None Fabricated ------------ Nothing Alien Tech Used ----------------- None Achievements -------------- None Challenges ------------ None Game ------ Seed FlakLongswordRedistributor Manual? 0 Play Time 00:14:50 Cumulative 683.2 hours Start 2020.02.27 @ 18:36:05 End 2020.02.27 @ 18:48:38 Sessions 1 Manual Loads 0 Difficulty Rogue Special Mode None Game No. 208 Rogue 208 Adventurer 0 Explorer 0 Win Type - Total 26 Types 19/1/3/3/0/0/0 Lore% 67 Gallery% 84 Achievement% 67 Wizard Run 0 Options --------- ASCII 0 Keyboard 1 Movement Numpad Keybinds 0 Fullscreen 1 Font 24/Smallcaps Map View 76x50 Tactical HUD 1 Map Filters NONE Filters NONE Steam X RUN: 036b640c-1aeb-4b43-891d-a3934b3c5ea0